bitfinex/quotes_BTCUSD_20250830
["timestamp","ask_amount","ask_price","bid_price","bid_amount"]
[1756559419307,0.58802909,108550.0,108540.0,0.00732317]
[1756559421184,0.58802909,108550.0,108540.0,0.00214317]
[1756559421601,0.58803075,108550.0,108540.0,0.00214317]
[1756559422201,0.58803075,108550.0,108540.0,0.00724317]
[1756559426650,0.58803075,108550.0,108540.0,0.00424317]
[1756559427049,0.58803075,108550.0,108540.0,0.00724317]
[1756559427300,0.58803075,108550.0,108540.0,0.00214317]
[1756559427666,0.56433547,108550.0,108540.0,0.00214317]
[1756559427867,0.58804621,108550.0,108540.0,0.00214317]
[1756559428068,0.58804621,108550.0,108540.0,0.00424317]
[1756559428373,0.58804626,108550.0,108540.0,0.00724317]
[1756559428992,0.58804626,108550.0,108540.0,0.00214317]
[1756559431937,0.59075626,108550.0,108540.0,0.00214317]
[1756559432296,5.66439581,108550.0,108540.0,0.00214317]
[1756559432417,5.69210281,108550.0,108540.0,0.00214317]
[1756559432841,5.60380649,108550.0,108540.0,0.00214317]
[1756559433245,5.60380649,108550.0,108540.0,0.00114317]
[1756559433491,5.80272045,108550.0,108540.0,0.00114317]
[1756559433688,5.77790298,108550.0,108540.0,0.00014317]
[1756559433899,5.77890298,108550.0,108540.0,0.00014317]
[1756559434348,5.89200737,108550.0,108540.0,0.00014317]
[1756559434555,5.80371105,108550.0,108540.0,0.00014317]
[1756559434871,5.77890298,108550.0,108540.0,0.00014317]
[1756559435436,5.80270282,108550.0,108540.0,0.00014317]
[1756559435610,5.80370282,108550.0,108540.0,0.00014317]
[1756559435799,0.18429782,108520.0,108510.0,0.003]
[1756559436003,0.20152078,108520.0,108510.0,0.00347746]
[1756559436201,0.20364078,108520.0,108510.0,0.00557746]
[1756559436429,0.36944078,108520.0,108510.0,0.00047746]
[1756559436808,0.39829685,108520.0,108510.0,0.00047746]
[1756559437015,0.39829685,108520.0,108510.0,0.00247746]
[1756559437016,0.39572685,108520.0,108510.0,0.00247746]
[1756559437328,0.37201078,108520.0,108510.0,0.00247746]
[1756559437528,0.37209078,108520.0,108510.0,0.00247746]
[1756559437731,0.20364078,108520.0,108510.0,0.00247746]
[1756559437920,0.36952078,108520.0,108510.0,0.00547746]
[1756559438296,0.36950392,108520.0,108510.0,0.00547746]
[1756559438509,0.70950392,108520.0,108510.0,0.00547746]
[1756559438981,0.70949719,108520.0,108510.0,0.00347746]
[1756559439369,0.71202719,108520.0,108510.0,0.00447746]
[1756559439499,0.71202719,108520.0,108510.0,0.00147746]
[1756559439699,0.70945719,108520.0,108510.0,0.00147746]
[1756559440112,0.70945719,108520.0,108510.0,0.00247746]
[1756559440309,0.70945719,108520.0,108510.0,0.00147746]
[1756559440928,0.54361719,108520.0,108510.0,0.00247746]
[1756559441132,0.70949719,108520.0,108510.0,0.00247746]
[1756559441368,0.54361719,108520.0,108510.0,0.00247746]
[1756559441748,0.70933719,108520.0,108510.0,0.00247746]
[1756559442169,0.71190719,108520.0,108510.0,0.00247746]
[1756559442382,5.69867738,108520.0,108510.0,0.00247746]
[1756559442579,5.67129263,108520.0,108510.0,0.00247746]
[1756559442791,5.66484862,108520.0,108510.0,0.00247746]
[1756559443015,5.69867757,108520.0,108500.0,0.00118793]
[1756559443243,0.52433179,108500.0,108490.0,0.0002]
[1756559443459,0.80031117,108500.0,108490.0,0.0002]
[1756559443674,0.83238592,108500.0,108490.0,0.0002]
[1756559443890,5.70026592,108500.0,108490.0,0.0002]
[1756559444599,0.18434878,108490.0,108480.0,0.06565455]
[1756559444777,5.19250978,108490.0,108480.0,0.06775455]
[1756559445012,0.18646878,108490.0,108480.0,0.06565455]
[1756559445713,0.35230878,108490.0,108480.0,0.07075455]
[1756559446315,0.87615511,108490.0,108480.0,0.06565455]
[1756559446572,5.73346572,108490.0,108480.0,0.06565455]
[1756559446778,5.6451694,108490.0,108480.0,0.06565455]
[1756559447847,5.66491357,108490.0,108480.0,0.06565455]
[1756559448283,5.67134122,108490.0,108480.0,0.06565455]
[1756559448500,5.66489429,108490.0,108480.0,0.06565455]
[1756559448699,5.75961448,108490.0,108480.0,0.06565455]
[1756559449343,5.75319061,108490.0,108480.0,0.06565455]
[1756559452227,5.66489429,108490.0,108480.0,0.06565455]
[1756559452851,5.66457429,108490.0,108480.0,0.06565455]
[1756559453498,5.66192429,108490.0,108480.0,0.06565455]
[1756559453706,5.68964929,108490.0,108480.0,0.06565455]
[1756559454116,5.69221929,108490.0,108480.0,0.06565455]
[1756559454349,5.74477546,108490.0,108480.0,0.06565455]
[1756559455180,5.7511896,108490.0,108480.0,0.06565455]
[1756559455607,5.76561902,108490.0,108480.0,0.06565455]
[1756559456078,5.60017902,108490.0,108480.0,0.06565455]
[1756559456297,5.76553902,108490.0,108480.0,0.06565455]
[1756559456846,5.76953902,108490.0,108480.0,0.06565455]
[1756559457280,5.60417902,108490.0,108480.0,0.06565455]
[1756559457480,5.76937902,108490.0,108480.0,0.06565455]
[1756559458319,5.60417902,108490.0,108480.0,0.06565455]
[1756559458523,5.74515818,108490.0,108480.0,0.06565455]
[1756559458901,5.73872801,108490.0,108480.0,0.06565455]
[1756559459115,5.52461751,108490.0,108480.0,0.06565455]
[1756559459487,5.71049629,108490.0,108480.0,0.06565455]
[1756559460364,5.71041629,108490.0,108480.0,0.06565455]
[1756559460593,5.54478629,108490.0,108480.0,0.07072455]
[1756559460809,5.68137096,108490.0,108480.0,0.06876455]
[1756559461019,5.70978629,108490.0,108480.0,0.06565455]
[1756559461243,5.54478629,108490.0,108480.0,0.06876455]
[1756559461462,5.70978629,108490.0,108480.0,0.07072455]
[1756559461717,5.70884629,108490.0,108480.0,0.07072455]
[1756559462171,5.68043096,108490.0,108480.0,0.07072455]
[1756559462387,5.44752267,108490.0,108480.0,0.07072455]
[1756559462605,0.25293225,108490.0,108480.0,0.07072455]
[1756559462815,0.23318808,108490.0,108480.0,0.07072455]
[1756559463041,0.39814808,108490.0,108480.0,0.07072455]
[1756559463266,0.73814808,108490.0,108480.0,0.07072455]
[1756559463677,0.73614808,108490.0,108480.0,0.07072455]
[1756559463887,0.57118808,108490.0,108480.0,0.07072455]
[1756559464094,0.57318808,108490.0,108480.0,0.07072455]
[1756559464552,0.57118808,108490.0,108480.0,0.07072455]
[1756559464975,0.56918808,108490.0,108480.0,0.07072455]
[1756559465191,0.57018808,108490.0,108480.0,0.07072455]
[1756559466653,0.73666808,108490.0,108480.0,0.07072455]
[1756559466861,0.76508341,108490.0,108480.0,0.07072455]
[1756559467319,0.78486517,108490.0,108480.0,0.07072455]
[1756559467547,0.79224469,108490.0,108480.0,0.06565455]
[1756559467959,0.79224469,108490.0,108480.0,0.07072455]
[1756559468174,0.79130469,108490.0,108480.0,0.07072455]
[1756559468402,0.78586642,108490.0,108480.0,0.07072455]
[1756559468606,0.7913672,108490.0,108480.0,0.07072455]
[1756559469024,0.79136768,108490.0,108480.0,0.07072455]
[1756559469227,0.81616752,108490.0,108480.0,0.07072455]
[1756559469440,0.81609335,108490.0,108480.0,0.07072455]
[1756559469676,0.65069335,108490.0,108480.0,0.07072455]
[1756559469909,0.78771802,108490.0,108480.0,0.07072455]
[1756559470126,0.81707335,108490.0,108480.0,0.06876455]
[1756559470536,0.81707335,108490.0,108480.0,0.07072455]
[1756559470753,0.81613335,108490.0,108480.0,0.07072455]
[1756559470994,0.78865802,108490.0,108480.0,0.07072455]
[1756559471634,0.78763802,108490.0,108480.0,0.07072455]
[1756559472358,0.82149198,108490.0,108480.0,0.07072455]
[1756559472839,0.92330129,108490.0,108480.0,0.06565455]
[1756559472974,0.94347732,108490.0,108480.0,0.06565455]
[1756559473175,0.91808748,108490.0,108480.0,0.06565455]
[1756559473381,0.96745843,108490.0,108480.0,0.06565455]
[1756559474266,0.9390431,108490.0,108480.0,0.06565455]
[1756559475471,0.93909607,108490.0,108480.0,0.06565455]
[1756559476644,0.9675114,108490.0,108480.0,0.06565455]
[1756559476851,5.89655872,108490.0,108480.0,0.06565455]
[1756559477252,5.8082624,108490.0,108480.0,0.06565455]
[1756559477893,5.8076724,108490.0,108480.0,0.06565455]
[1756559478577,5.8082624,108490.0,108480.0,0.06565455]
[1756559478781,5.75816706,108490.0,108480.0,0.06565455]
[1756559478966,5.77536793,108490.0,108480.0,0.06565455]
[1756559479614,5.77436793,108490.0,108480.0,0.06565455]
[1756559480024,5.77636793,108490.0,108480.0,0.06565455]
[1756559480226,5.86466425,108490.0,108480.0,0.06565455]
[1756559480629,5.86307425,108490.0,108480.0,0.06565455]
[1756559480991,5.77477793,108490.0,108480.0,0.06565455]
[1756559481186,5.77736793,108490.0,108480.0,0.06565455]
[1756559483062,5.73259738,108490.0,108480.0,1e-08]
[1756559483256,5.76101271,108490.0,108480.0,1e-08]
[1756559485281,5.76042271,108490.0,108480.0,1e-08]
[1756559485843,5.75929342,108490.0,108480.0,1e-08]
[1756559486061,5.78401325,108490.0,108480.0,1e-08]
[1756559486898,5.87230957,108490.0,108480.0,1e-08]
[1756559487095,5.87190957,108490.0,108480.0,1e-08]
[1756559487292,5.78361325,108490.0,108480.0,1e-08]
[1756559488383,5.61941325,108490.0,108480.0,1e-08]
[1756559488794,5.61941325,108490.0,108480.0,0.00306001]
[1756559489005,5.75499792,108490.0,108480.0,0.00306001]
[1756559489426,5.72198113,108490.0,108480.0,0.00306001]
[1756559490082,5.72198124,108490.0,108480.0,0.00306001]
[1756559490508,5.72198124,108490.0,108480.0,1e-08]
[1756559491035,5.75039657,108490.0,108480.0,1e-08]
[1756559491642,5.75051657,108490.0,108480.0,0.00306001]
[1756559491923,5.75051657,108490.0,108480.0,1e-08]
[1756559492552,5.7835323,108490.0,108480.0,1e-08]
[1756559492931,5.87182939,108490.0,108480.0,1e-08]
[1756559493107,5.75877324,108490.0,108480.0,1e-08]
[1756559493519,5.75877324,108490.0,108480.0,0.00306001]
[1756559493922,5.59465324,108490.0,108480.0,0.00306001]
[1756559494123,5.75869324,108490.0,108480.0,1e-08]
[1756559494960,5.75861324,108490.0,108480.0,0.00306001]
[1756559496232,5.75861324,108490.0,108480.0,1e-08]
[1756559496877,5.75861324,108490.0,108480.0,0.00306001]
[1756559497252,5.75861324,108490.0,108480.0,1e-08]
[1756559497456,5.81424577,108490.0,108480.0,1e-08]
[1756559497866,5.93453672,108490.0,108480.0,1e-08]
[1756559499090,5.87890419,108490.0,108480.0,1e-08]
[1756559499690,5.8552594,108490.0,108480.0,1e-08]
[1756559499853,0.52436578,108480.0,108460.0,0.0002]
[1756559500075,0.4657835,108470.0,108460.0,0.0002]
[1756559500281,0.53963612,108470.0,108460.0,0.0022]
[1756559500657,5.37979747,108470.0,108460.0,1e-08]
[1756559500848,5.41601843,108470.0,108460.0,1e-08]
[1756559501200,5.4164955,108470.0,108460.0,1e-08]
[1756559501392,5.39171478,108470.0,108460.0,1e-08]
[1756559502043,5.41648377,108470.0,108460.0,1e-08]
[1756559502472,5.50478009,108470.0,108460.0,1e-08]
[1756559502855,5.41648377,108470.0,108460.0,1e-08]
[1756559503828,5.75748377,108470.0,108460.0,1e-08]
[1756559504028,5.73271478,108470.0,108460.0,1e-08]
[1756559504236,5.75746437,108470.0,108460.0,1e-08]
[1756559504450,5.75609384,108470.0,108460.0,1e-08]
[1756559504649,0.18441678,108450.0,108440.0,1e-08]
[1756559504865,5.42211127,108450.0,108440.0,1e-08]
[1756559505079,5.2870766,108450.0,108440.0,1e-08]
[1756559505281,5.4556166,108450.0,108440.0,1e-08]
[1756559505497,5.57250481,108450.0,108440.0,1e-08]
[1756559506445,5.57350481,108450.0,108440.0,1e-08]
[1756559506844,5.54875897,108450.0,108440.0,1e-08]
[1756559507055,5.57350481,108450.0,108440.0,1e-08]
[1756559507256,5.45728265,108450.0,108440.0,1e-08]
[1756559507534,5.44314311,108450.0,108440.0,1e-08]
[1756559509890,5.44214311,108450.0,108440.0,1e-08]
[1756559510101,5.44007311,108450.0,108440.0,0.00513001]
[1756559510318,5.44099227,108450.0,108440.0,0.00513001]
[1756559510526,5.27591227,108450.0,108440.0,0.00513001]
[1756559510735,5.44099227,108450.0,108440.0,0.00513001]
[1756559511201,5.44107227,108450.0,108440.0,0.00513001]
[1756559512512,5.14834584,108450.0,108440.0,0.00513001]
[1756559512721,5.24132585,108450.0,108440.0,0.00513001]
[1756559512918,0.45899685,108450.0,108440.0,0.00513001]
[1756559513472,0.29399685,108450.0,108440.0,0.00513001]
[1756559513676,0.45895685,108450.0,108440.0,0.00513001]
[1756559516101,0.48688565,108450.0,108440.0,0.00513001]
[1756559516524,0.48894565,108450.0,108440.0,0.00513001]
[1756559516949,0.73382564,108450.0,108440.0,0.00513001]
[1756559517679,0.85724098,108450.0,108440.0,1e-08]
[1756559517886,0.85724098,108450.0,108440.0,0.00213001]
[1756559518509,0.85724098,108450.0,108440.0,0.00513001]
[1756559518757,0.85518098,108450.0,108440.0,0.00513001]
[1756559519454,0.85510098,108450.0,108440.0,0.00513001]
[1756559519796,0.59736097,108450.0,108440.0,0.00513001]
[1756559520045,0.73370564,108450.0,108440.0,0.00513001]
[1756559520686,0.71710558,108450.0,108440.0,0.00513001]
[1756559521247,0.55234558,108450.0,108440.0,0.00513001]
[1756559521474,0.21234558,108450.0,108440.0,0.00513001]
[1756559522209,0.1844143,108460.0,108440.0,0.30578804]
[1756559522406,0.1844143,108460.0,108440.0,0.30048262]
[1756559522407,0.18441678,108450.0,108440.0,0.30048262]
[1756559523028,0.18441678,108450.0,108440.0,0.30348262]
[1756559524009,0.18441678,108450.0,108440.0,0.30548262]
[1756559524412,0.20159265,108450.0,108440.0,0.30548262]
[1756559525439,0.20159265,108450.0,108440.0,0.30348262]
[1756559525957,0.20159265,108450.0,108440.0,0.30648262]
[1756559526827,0.20159265,108450.0,108440.0,0.12204884]
[1756559527029,0.20159265,108450.0,108440.0,0.12435426]
[1756559530108,0.20159662,108450.0,108440.0,0.30878804]
[1756559530335,0.18441678,108450.0,108440.0,0.30648262]
[1756559531161,0.18441678,108450.0,108440.0,0.12204884]
[1756559531436,0.18441678,108450.0,108440.0,0.47306804]
[1756559531603,0.18441678,108450.0,108440.0,0.47076262]
[1756559532694,0.18441678,108450.0,108440.0,0.47072262]
[1756559536935,0.18441678,108450.0,108440.0,0.47056262]
[1756559537856,0.1844143,108460.0,108450.0,0.2053556]
[1756559538063,0.18439977,108460.0,108450.0,0.28252679]
[1756559538269,0.18439977,108460.0,108450.0,0.46738561]
[1756559538659,0.19407897,108470.0,108450.0,0.46738561]
[1756559538864,0.21125966,108470.0,108460.0,0.003]
[1756559539069,0.21125966,108470.0,108460.0,0.17127499]
[1756559539268,0.21125966,108470.0,108460.0,0.16897]
[1756559539506,0.23986943,108470.0,108460.0,0.16897]
[1756559540749,0.24200136,108470.0,108460.0,0.16997]
[1756559541281,0.23987136,108470.0,108460.0,0.16989]
[1756559541493,0.24200231,108470.0,108460.0,0.00613]
[1756559541716,0.24200231,108470.0,108460.0,0.16989]
[1756559542133,0.58523231,108470.0,108460.0,0.001]
[1756559542346,0.6334441,108470.0,108460.0,0.001]
[1756559542527,0.63988827,108470.0,108460.0,0.001]
[1756559542728,5.54051528,108470.0,108460.0,0.001]
[1756559542932,5.5652522,108470.0,108460.0,0.001]
[1756559543771,0.18441678,108450.0,108440.0,0.00315001]
[1756559543976,0.20160035,108450.0,108440.0,0.07526431]
[1756559544190,0.20160035,108450.0,108440.0,0.07732431]
[1756559544761,0.20160035,108450.0,108440.0,0.00751543]
[1756559546065,0.20160035,108450.0,108440.0,0.00851543]
[1756559547528,0.20160035,108450.0,108440.0,0.10149544]
[1756559547744,0.20160035,108450.0,108440.0,0.30686804]
[1756559547919,0.20160035,108450.0,108440.0,0.30456262]
[1756559548756,0.18441678,108450.0,108440.0,0.30456262]
[1756559548965,0.18441438,108460.0,108440.0,0.30456262]
[1756559549105,0.18441678,108450.0,108440.0,0.37233262]
[1756559549356,0.20163463,108450.0,108440.0,0.35125884]
[1756559549904,0.20163463,108450.0,108440.0,0.53784262]
[1756559550084,0.18441678,108450.0,108440.0,0.53784262]
[1756559551591,0.18441438,108460.0,108440.0,0.53784262]
[1756559551765,0.20163301,108460.0,108440.0,0.53469262]
[1756559551976,0.20163301,108460.0,108450.0,0.00315]
[1756559552258,0.20163301,108460.0,108450.0,0.00521]
[1756559552541,0.20163301,108460.0,108450.0,0.16833]
[1756559553170,0.20376301,108460.0,108450.0,0.16833]
[1756559553370,0.20376301,108460.0,108450.0,0.16933]
[1756559554199,0.2016184,108460.0,108450.0,0.35605198]
[1756559554409,0.2016184,108460.0,108450.0,0.35374678]
[1756559554857,0.01721863,108460.0,108450.0,0.46766561]
[1756559555073,0.2016184,108460.0,108450.0,0.28304883]
[1756559555287,0.2016184,108460.0,108450.0,0.46746561]
[1756559556317,0.2016184,108460.0,108450.0,0.46946561]
[1756559556727,0.2016184,108460.0,108450.0,0.46846561]
[1756559556897,0.2016184,108460.0,108450.0,0.47146561]
[1756559557304,0.2016184,108460.0,108450.0,0.48993561]
[1756559557501,0.2016184,108460.0,108450.0,0.47146561]
[1756559557715,0.2037484,108460.0,108450.0,0.28381883]
[1756559558130,0.2037484,108460.0,108450.0,0.28373883]
[1756559558375,0.16272,108480.0,108460.0,0.36093882]
[1756559558593,0.16272,108480.0,108470.0,0.21272]
[1756559558594,0.19083661,108480.0,108470.0,0.21272]
[1756559558796,0.19083661,108480.0,108470.0,0.23263789]
[1756559560550,0.19083661,108480.0,108470.0,0.23255789]
[1756559561623,0.18438045,108480.0,108470.0,0.23255789]
[1756559561839,0.28381573,108480.0,108470.0,0.01991789]
[1756559562066,0.64986311,108480.0,108470.0,0.06991789]
[1756559562298,0.64986311,108480.0,108470.0,0.05]
[1756559562500,0.64986289,108480.0,108470.0,0.05]
[1756559563477,0.62381551,108480.0,108470.0,0.05]
[1756559564442,0.62381551,108480.0,108470.0,0.3191]
[1756559565208,0.62381551,108480.0,108470.0,0.4815]
[1756559566514,0.43943506,108480.0,108470.0,0.4815]
[1756559566712,0.62381551,108480.0,108470.0,0.4815]
[1756559567670,1.1107281,108480.0,108470.0,0.4815]
[1756559569688,0.62381551,108480.0,108470.0,0.48665]
[1756559569912,0.5308355,108480.0,108470.0,0.48665]
[1756559570289,0.5480445,108480.0,108470.0,0.48665]
[1756559571171,0.5480445,108480.0,108470.0,0.50656996]
[1756559571959,0.5480445,108480.0,108470.0,0.50856996]
[1756559572161,0.54804053,108480.0,108470.0,0.50856996]
[1756559572369,0.20804053,108480.0,108470.0,0.94886996]
[1756559572547,0.54804053,108480.0,108470.0,0.74732137]
[1756559572746,0.54158778,108480.0,108470.0,0.74732137]
[1756559573770,0.01720733,108480.0,108470.0,0.93270414]
[1756559574529,0.01720733,108480.0,108470.0,0.74832137]
[1756559576737,0.20157311,108480.0,108470.0,0.74832137]
[1756559576933,0.20157311,108480.0,108470.0,0.26140878]
[1756559577304,0.20157311,108480.0,108470.0,0.09900878]
[1756559577539,0.20157311,108480.0,108470.0,0.26371356]
[1756559577739,0.20157311,108480.0,108470.0,0.26140878]
[1756559579374,0.20157311,108480.0,108470.0,0.09900878]
[1756559579574,0.20157311,108480.0,108470.0,0.26140878]
[1756559580371,0.01720733,108480.0,108470.0,0.26140878]
[1756559580596,0.01720733,108480.0,108470.0,0.93270414]
[1756559580845,0.01720733,108480.0,108470.0,0.74832137]
[1756559581022,0.20157311,108480.0,108470.0,0.26140878]
[1756559581217,0.20157311,108480.0,108470.0,0.09900878]
[1756559581441,0.20156439,108480.0,108470.0,0.26136878]
[1756559582172,0.68050714,108490.0,108470.0,0.76920533]
[1756559582461,1.02050714,108490.0,108480.0,0.05]
[1756559582607,1.02050714,108490.0,108480.0,0.23533996]
[1756559582813,1.02695572,108490.0,108480.0,0.23227996]
[1756559583036,1.02695572,108490.0,108480.0,0.21236]
[1756559584468,0.52436578,108480.0,108470.0,0.57877537]
[1756559584669,1.01127837,108480.0,108470.0,0.74113537]
[1756559584854,1.01772605,108480.0,108470.0,0.74113537]
[1756559585259,1.01772605,108480.0,108470.0,0.50783655]
[1756559585463,1.01772605,108480.0,108470.0,0.67051655]
[1756559585637,1.01772605,108480.0,108470.0,0.72051655]
[1756559586286,1.01772605,108480.0,108470.0,0.72251655]
[1756559586892,1.01772605,108480.0,108470.0,0.72351655]
[1756559587649,1.01772605,108480.0,108470.0,0.56083655]
[1756559587850,1.01772605,108480.0,108470.0,0.72327655]
[1756559588080,1.01772605,108480.0,108470.0,0.28297655]
[1756559588700,1.01772605,108480.0,108470.0,0.28197655]
[1756559588914,0.53081346,108480.0,108470.0,0.28712655]
[1756559589118,1.01772605,108480.0,108470.0,0.28512655]
[1756559589533,0.67772605,108480.0,108470.0,0.28512655]
[1756559590311,0.19081346,108480.0,108470.0,0.28512655]
[1756559590489,0.67772605,108480.0,108470.0,0.28612655]
[1756559590690,0.67772605,108480.0,108470.0,0.28812655]
[1756559592080,0.67772564,108480.0,108470.0,0.28812655]
[1756559592285,0.19081305,108480.0,108470.0,0.28812655]
[1756559592462,0.67772564,108480.0,108470.0,0.28812655]
[1756559593711,0.67772564,108480.0,108470.0,0.12359655]
[1756559593882,0.67772564,108480.0,108470.0,0.28711655]
[1756559594092,0.69492073,108480.0,108470.0,0.28711655]
[1756559594497,0.69492073,108480.0,108470.0,0.22167]
[1756559595161,0.20800814,108480.0,108470.0,0.22167]
[1756559595390,0.69492073,108480.0,108470.0,0.22167]
[1756559595563,0.69492073,108480.0,108470.0,0.21652]
[1756559595763,0.69492073,108480.0,108470.0,0.22167]
[1756559596423,1.03492073,108480.0,108470.0,0.21652]
[1756559597085,1.03492073,108480.0,108470.0,0.21958]
[1756559597311,1.03492073,108480.0,108470.0,0.22167]
[1756559597902,1.03492073,108480.0,108470.0,0.21652]
[1756559598109,1.03492073,108480.0,108470.0,0.21958]
[1756559598784,1.02847346,108480.0,108470.0,0.21858]
[1756559598994,1.03492251,108480.0,108470.0,0.21858]
[1756559599483,0.54800992,108480.0,108470.0,0.2207]
[1756559599626,1.03492251,108480.0,108470.0,0.2207]
[1756559601091,0.54800992,108480.0,108470.0,0.05718]
[1756559601320,1.03492251,108480.0,108470.0,0.22166]
[1756559602295,1.02847552,108480.0,108470.0,0.22166]
[1756559602463,1.03492445,108480.0,108470.0,0.22166]
[1756559603307,0.54801186,108480.0,108470.0,0.22166]
[1756559603882,1.03492445,108480.0,108470.0,0.22166]
[1756559604087,0.54801186,108480.0,108470.0,0.22166]
[1756559604292,1.03492445,108480.0,108470.0,0.22166]
[1756559604743,0.54801186,108480.0,108470.0,0.22166]
[1756559604954,1.03492445,108480.0,108470.0,0.22166]
[1756559605354,0.54801186,108480.0,108470.0,0.22166]
[1756559605817,1.03492445,108480.0,108470.0,0.22166]
[1756559606044,1.02847552,108480.0,108470.0,0.22166]
[1756559606265,1.0349263,108480.0,108470.0,0.22166]
[1756559606478,1.0349263,108480.0,108470.0,0.22266]
[1756559606909,1.02847552,108480.0,108470.0,0.22266]
[1756559607147,1.0349265,108480.0,108470.0,0.22266]
[1756559607364,1.0349265,108480.0,108470.0,0.22226]
[1756559607579,1.0349265,108480.0,108470.0,0.17226]
[1756559607827,1.0349265,108480.0,108470.0,0.22226]
[1756559608107,0.54801391,108480.0,108470.0,0.22226]
[1756559608356,1.0349265,108480.0,108470.0,0.22226]
[1756559610724,1.0349265,108480.0,108470.0,0.05818]
[1756559610927,1.0349265,108480.0,108470.0,0.22198]
[1756559612760,1.01127837,108480.0,108470.0,0.22198]
[1756559612974,1.03495041,108480.0,108470.0,0.22198]
[1756559613791,1.03495167,108480.0,108470.0,0.22198]
[1756559614862,1.03495167,108480.0,108470.0,0.28951655]
[1756559616280,1.01773564,108480.0,108470.0,0.28951655]
[1756559616510,0.54804688,108480.0,108470.0,0.28951655]
[1756559616757,1.03495947,108480.0,108470.0,0.28951655]
[1756559617415,0.54804688,108480.0,108470.0,0.28951655]
[1756559617672,1.03495947,108480.0,108470.0,0.28951655]
[1756559620993,0.54804688,108480.0,108470.0,0.28951655]
[1756559621214,1.03495947,108480.0,108470.0,0.28951655]
[1756559621429,0.01722383,108480.0,108470.0,0.42730159]
[1756559622903,0.50413642,108480.0,108470.0,0.42730159]
[1756559623352,0.48691259,108480.0,108470.0,0.42730159]
[1756559623557,1.01128971,108490.0,108480.0,0.02093882]
[1756559623862,1.03495454,108490.0,108480.0,0.07617882]
[1756559624224,1.03495455,108490.0,108480.0,0.07617882]
[1756559624476,0.50412339,108490.0,108480.0,0.33376917]
[1756559624719,0.50412339,108490.0,108480.0,0.3314646]
[1756559625399,0.68847217,108490.0,108480.0,0.3314646]
[1756559626480,0.67126137,108490.0,108480.0,0.3314646]
[1756559626839,0.67126137,108490.0,108480.0,0.31065882]
[1756559627223,0.18434878,108490.0,108480.0,0.14809882]
[1756559627439,0.67126137,108490.0,108480.0,0.31296339]
[1756559627645,0.67126137,108490.0,108480.0,0.31065882]
[1756559628591,0.67126137,108490.0,108480.0,0.14809882]
[1756559628759,0.67126137,108490.0,108480.0,0.31292339]
[1756559628964,0.67126137,108490.0,108480.0,0.31061882]
[1756559629163,0.67126137,108490.0,108480.0,0.30961882]
[1756559629630,0.67126137,108490.0,108480.0,0.31061882]
[1756559630010,0.48691259,108490.0,108480.0,0.4949846]
[1756559630678,0.55868227,108500.0,108490.0,0.05]
[1756559630863,1.06278343,108500.0,108490.0,0.14359537]
[1756559631515,1.06278343,108500.0,108490.0,0.30623537]
[1756559631931,1.06278343,108500.0,108490.0,0.30628308]
[1756559633981,1.06277991,108500.0,108490.0,0.30628308]
[1756559634296,1.06277991,108500.0,108490.0,0.30728308]
[1756559634537,1.06278051,108500.0,108490.0,0.30728308]
[1756559634954,0.57586792,108500.0,108490.0,0.30728308]
[1756559635191,1.06278051,108500.0,108490.0,0.30728308]
[1756559636806,0.38228037,108500.0,108490.0,0.49163186]
[1756559637187,0.51200731,108500.0,108490.0,0.49163186]
[1756559638086,0.02509472,108500.0,108490.0,0.49163186]
[1756559638306,0.6963391,108500.0,108490.0,0.30712308]
[1756559638493,0.67124438,108500.0,108490.0,0.30712308]
[1756559639213,0.69309298,108500.0,108490.0,0.49147186]
[1756559640161,0.0218486,108500.0,108490.0,0.49147186]
[1756559640365,0.48691259,108500.0,108490.0,0.49147186]
[1756559640802,0.1843148,108510.0,108500.0,0.07093882]
[1756559641028,0.67122739,108510.0,108500.0,0.07393882]
[1756559641292,0.67122739,108510.0,108500.0,0.07605882]
[1756559641454,0.67122739,108510.0,108500.0,0.58389537]
[1756559642773,0.1843148,108510.0,108500.0,0.58389537]
[1756559642994,0.67122739,108510.0,108500.0,0.58389537]
[1756559643426,0.1843148,108510.0,108500.0,0.58389537]
[1756559643643,0.67122739,108510.0,108500.0,0.58389537]
[1756559644501,0.68840408,108510.0,108500.0,0.58389537]
[1756559644945,0.67122739,108510.0,108500.0,0.74637537]
[1756559645155,0.70983732,108510.0,108500.0,0.74637537]
[1756559645386,0.22292473,108510.0,108500.0,0.74637537]
[1756559645612,0.70983732,108510.0,108500.0,0.74637537]
[1756559645843,0.22292473,108510.0,108500.0,0.74637537]
[1756559646072,0.70983732,108510.0,108500.0,0.74637537]
[1756559647160,0.70983732,108510.0,108500.0,0.74837537]
[1756559647817,0.22292473,108510.0,108500.0,0.74837537]
[1756559648021,0.70983732,108510.0,108500.0,0.74837537]
[1756559649268,0.22292473,108510.0,108500.0,0.74837537]
[1756559649489,0.70983732,108510.0,108500.0,0.79038982]
[1756559651762,0.70983732,108510.0,108500.0,0.79238982]
[1756559652177,0.22292473,108510.0,108500.0,0.79238982]
[1756559652382,0.70983732,108510.0,108500.0,0.79238982]
[1756559653409,0.70951303,108510.0,108500.0,0.79238982]
[1756559653712,0.7095339,108510.0,108500.0,0.79238982]
[1756559653924,0.2229456,108510.0,108500.0,0.79238982]
[1756559654116,0.70953833,108510.0,108500.0,0.79238982]
[1756559654319,0.2229456,108510.0,108500.0,0.79234982]
[1756559654533,0.70953833,108510.0,108500.0,0.62990982]
[1756559654725,0.2229456,108510.0,108500.0,0.79234982]
[1756559654887,0.70953833,108510.0,108500.0,0.79234982]
[1756559655693,0.2229456,108510.0,108500.0,0.79234982]
[1756559655905,0.70953833,108510.0,108500.0,0.79234982]
[1756559656208,0.2229456,108510.0,108500.0,0.62990982]
[1756559656517,0.70953833,108510.0,108500.0,0.79234982]
[1756559657118,0.70953833,108510.0,108500.0,0.62990982]
[1756559657346,0.70953833,108510.0,108500.0,0.79234982]
[1756559657582,0.70953833,108510.0,108500.0,0.62990982]
[1756559657826,0.70953833,108510.0,108500.0,0.79234982]
[1756559658050,0.2229456,108510.0,108500.0,0.79234982]
[1756559658261,0.70953833,108510.0,108500.0,0.79234982]
[1756559658898,0.70953833,108510.0,108500.0,0.62990982]
[1756559659095,0.70953833,108510.0,108500.0,0.79234982]
[1756559665196,0.7095648,108510.0,108500.0,0.79234982]
[1756559665427,0.71602535,108510.0,108500.0,0.79234982]
[1756559665742,0.71602535,108510.0,108500.0,0.79018982]
[1756559666090,0.71602535,108510.0,108500.0,0.79232982]
[1756559666874,0.51027735,108510.0,108500.0,0.79232982]
[1756559667317,0.69459215,108510.0,108500.0,0.79232982]
[1756559669305,0.71583617,108510.0,108500.0,0.79232982]
[1756559674010,0.71583617,108510.0,108500.0,0.771391]
[1756559674670,0.6986121,108510.0,108500.0,0.771391]
[1756559674848,0.71586378,108510.0,108500.0,0.771391]
[1756559675243,0.71586381,108510.0,108500.0,0.771391]
[1756559677031,1.05586381,108510.0,108500.0,0.12153655]